fUST/lending_fUST_20250716
["ID","MTS","AMOUNT","RATE_DAILY","PERIOD"]
[372470159,1752657047581,-460.0,0.00021643,2]
[372470160,1752657047592,-523.38,0.00021643,2]
[372470161,1752657047602,-460.0,0.00021643,2]
[372470162,1752657047612,-1425.85,0.00021643,2]
[372470163,1752657047623,-460.0,0.00021643,2]
[372470164,1752657047633,-460.0,0.00021643,2]
[372470165,1752657047643,-984.74,0.00021643,2]
[372470166,1752657047653,-1727.28,0.00021643,2]
[372470167,1752657047663,-460.0,0.00021643,2]
[372470168,1752657047672,-460.0,0.00021643,2]
[372470169,1752657047682,-496.36,0.00021643,2]
[372470170,1752657047691,-424.42212522,0.00021643,2]
[372470171,1752657047700,-460.0,0.00021643,2]
[372470172,1752657047710,-959.51,0.00021643,2]
[372470173,1752657047719,-495.04,0.00021643,2]
[372470174,1752657047729,-521.71,0.00021643,2]
[372470175,1752657047738,-460.0,0.00021643,2]
[372470176,1752657047747,-861.92,0.00021643,2]
[372470177,1752657047757,-542.33,0.00021643,2]
[372470178,1752657047766,-609.38,0.00021643,2]
[372470179,1752657047776,-825.03,0.00021643,2]
[372470180,1752657047786,-658.76,0.00021643,2]
[372470181,1752657047795,-487.4,0.00021643,2]
[372470182,1752657047805,-500.0,0.00021674,2]
[372470183,1752657047815,-580.28285036,0.00021856,2]
[372470184,1752657047824,-460.0,0.00021917,2]
[372470185,1752657047834,-460.0,0.00021917,2]
[372470186,1752657047844,-377.89,0.00021917,2]
[372470187,1752657047854,-460.0,0.00021917,2]
[372470188,1752657047863,-460.0,0.00021917,2]
[372470189,1752657047873,-1425.85,0.00021917,2]
[372470190,1752657047882,-460.0,0.00021917,2]
[372470191,1752657047892,-460.0,0.00021917,2]
[372470192,1752657047902,-984.74,0.00021917,2]
[372470193,1752657047912,-1727.28,0.00021917,2]
[372470194,1752657047921,-460.0,0.00021917,2]
[372470195,1752657047931,-460.0,0.00021917,2]
[372470196,1752657047940,-460.0,0.00021917,2]
[372470197,1752657047949,-959.51,0.00021917,2]
[372470198,1752657047959,-521.71,0.00021917,2]
[372470199,1752657047968,-460.0,0.00021917,2]
[372470200,1752657047977,-861.92,0.00021917,2]
[372470201,1752657047987,-542.33,0.00021917,2]
[372470202,1752657047996,-609.38,0.00021917,2]
[372470203,1752657048005,-825.03,0.00021917,2]
[372470204,1752657048015,-658.76,0.00021917,2]
[372470205,1752657048024,-10664.01,0.00022,7]
[372470206,1752657048034,-161.0,0.00022,2]
[372470207,1752657048044,-460.0,0.00022191,2]
[372470208,1752657048054,-460.0,0.00022191,2]
[372470209,1752657048064,-460.0,0.00022191,2]
[372470210,1752657048074,-460.0,0.00022191,2]
[372470211,1752657048085,-1425.85,0.00022191,2]
[372470212,1752657048095,-460.0,0.00022191,2]
[372470213,1752657048106,-460.0,0.00022191,2]
[372470214,1752657048115,-984.74,0.00022191,2]
[372470215,1752657048124,-1727.28,0.00022191,2]
[372470216,1752657048133,-460.0,0.00022191,2]
[372470217,1752657048142,-460.0,0.00022191,2]
[372470218,1752657048152,-460.0,0.00022191,2]
[372470219,1752657048162,-959.51,0.00022191,2]
[372470220,1752657048173,-521.71,0.00022191,2]
[372470221,1752657048183,-460.0,0.00022191,2]
[372470222,1752657048193,-861.92,0.00022191,2]
[372470223,1752657048203,-542.33,0.00022191,2]
[372470224,1752657048301,-609.38,0.00022191,2]
[372470225,1752657048313,-825.03,0.00022191,2]
[372470226,1752657048324,-658.76,0.00022191,2]
[372470227,1752657048334,-161.0,0.00022192,7]
[372470228,1752657048345,-151.0,0.000223,10]
[372470229,1752657048356,-299.0,0.00022327,2]
[372470230,1752657048366,-249.77793797,0.0002235,2]
[372470231,1752657048376,-500.85482562,0.0002246,2]
[372470232,1752657048386,-500.0,0.0002246,2]
[372470233,1752657048395,-500.0,0.0002246,2]
[372470234,1752657048405,-300.31602514,0.0002246,2]
[372470235,1752657048415,-153.72017957,0.0002246,2]
[372470236,1752657048424,-460.0,0.00022465,2]
[372470237,1752657048434,-460.0,0.00022465,2]
[372470238,1752657048444,-514.66,0.00022465,2]
[372470239,1752657048455,-460.0,0.00022465,2]
[372470240,1752657048465,-1425.85,0.00022465,2]
[372470241,1752657048475,-460.0,0.00022465,2]
[372470242,1752657048485,-460.0,0.00022465,2]
[372470243,1752657048495,-984.74,0.00022465,2]
[372470244,1752657048505,-1727.28,0.00022465,2]
[372470245,1752657048514,-460.0,0.00022465,2]
[372470246,1752657048524,-460.0,0.00022465,2]
[372470247,1752657048534,-460.0,0.00022465,2]
[372470248,1752657048544,-959.51,0.00022465,2]
[372470249,1752657048553,-521.71,0.00022465,2]
[372470250,1752657048564,-460.0,0.00022465,2]
[372470251,1752657048575,-861.92,0.00022465,2]
[372470252,1752657048584,-542.33,0.00022465,2]
[372470253,1752657048594,-609.38,0.00022465,2]
[372470254,1752657048604,-825.03,0.00022465,2]
[372470255,1752657048615,-658.76,0.00022465,2]
[372470256,1752657048625,-567.68563223,0.00022739,2]
[372470257,1752657048636,-460.0,0.00022739,2]
[372470258,1752657048646,-460.0,0.00022739,2]
[372470259,1752657048656,-1425.85,0.00022739,2]
[372470260,1752657048665,-460.0,0.00022739,2]
[372470261,1752657048675,-368.97695939,0.00022739,2]
[372470262,1752657048691,-984.74,0.00022739,2]
[372470263,1752657048703,-1727.28,0.00022739,2]
[372470264,1752657048716,-300.73652658,0.00022739,2]
[372470265,1752657048726,-460.0,0.00022739,2]
[372470266,1752657048736,-539.72,0.00022739,2]
[372470267,1752657048745,-959.51,0.00022739,2]
[372470268,1752657048755,-521.71,0.00022739,2]
[372470269,1752657048766,-460.0,0.00022739,2]
[372470270,1752657048776,-861.92,0.00022739,2]
[372470271,1752657048786,-542.33,0.00022739,2]
[372470272,1752657048796,-609.38,0.00022739,2]
[372470273,1752657048806,-825.03,0.00022739,2]
[372470274,1752657048816,-658.76,0.00022739,2]
[372470275,1752657048827,-961.0,0.00022775,2]
[372470276,1752657048837,-1097.69531993,0.000228,2]
[372470277,1752657048847,-17348.31,0.000228,2]
[372470278,1752657048856,-151.0,0.000229,7]
[372470279,1752657048865,-230.8109288,0.00023,3]
[372470280,1752657048875,-520.85416667,0.00023,3]
[372470281,1752657048884,-838.99048831,0.00023,3]
[372470282,1752657048893,-460.0,0.00023013,2]
[372470283,1752657048902,-460.0,0.00023013,2]
[372470284,1752657048911,-1425.85,0.00023013,2]
[372470285,1752657048921,-460.0,0.00023013,2]
[372470286,1752657048930,-984.74,0.00023013,2]
[372470287,1752657048940,-1727.28,0.00023013,2]
[372470288,1752657048953,-460.0,0.00023013,2]
[372470289,1752657048963,-959.51,0.00023013,2]
[372470290,1752657048972,-521.71,0.00023013,2]
[372470291,1752657048982,-460.0,0.00023013,2]
[372470292,1752657048991,-861.92,0.00023013,2]
[372470293,1752657049001,-542.33,0.00023013,2]
[372470294,1752657049011,-609.38,0.00023013,2]
[372470295,1752657049021,-825.03,0.00023013,2]
[372470296,1752657049030,-658.76,0.00023013,2]
[372470297,1752657049040,-161.0,0.00023014,7]
[372470298,1752657049051,-160.0,0.00023016,3]
[372470299,1752657049061,-460.0,0.00023287,2]
[372470300,1752657049075,-460.0,0.00023287,2]
[372470301,1752657049086,-1425.85,0.00023287,2]
[372470302,1752657049097,-460.0,0.00023287,2]
[372470303,1752657049107,-984.74,0.00023287,2]
[372470304,1752657049116,-1727.28,0.00023287,2]
[372470305,1752657049126,-460.0,0.00023287,2]
[372470306,1752657049136,-959.51,0.00023287,2]
[372470307,1752657049146,-521.71,0.00023287,2]
[372470308,1752657049156,-460.0,0.00023287,2]
[372470309,1752657049166,-861.92,0.00023287,2]
[372470310,1752657049175,-542.33,0.00023287,2]
[372470311,1752657049185,-609.38,0.00023287,2]
[372470312,1752657049195,-825.03,0.00023287,2]
[372470313,1752657049205,-658.76,0.00023287,2]
[372470314,1752657049215,-460.0,0.00023561,2]
[372470315,1752657049227,-460.0,0.00023561,2]
[372470316,1752657049237,-1425.85,0.00023561,2]
[372470317,1752657049247,-460.0,0.00023561,2]
[372470318,1752657049257,-984.74,0.00023561,2]
[372470319,1752657049271,-1727.28,0.00023561,2]
[372470320,1752657049280,-460.0,0.00023561,2]
[372470321,1752657049290,-959.51,0.00023561,2]
[372470322,1752657049300,-521.71,0.00023561,2]
[372470323,1752657049310,-464.26,0.00023561,2]
[372470324,1752657049321,-861.92,0.00023561,2]
[372470325,1752657049330,-542.33,0.00023561,2]
[372470326,1752657049340,-609.38,0.00023561,2]
[372470327,1752657049353,-825.03,0.00023561,2]
[372470328,1752657049363,-658.76,0.00023561,2]
[372470329,1752657049374,-249.77793797,0.00023575,2]
[372470330,1752657049384,-151.0,0.000236,5]
[372470331,1752657049395,-500.0,0.00023693,2]
[372470332,1752657049405,-207.4,0.00023693,2]
[372470333,1752657049414,-500.0,0.00023693,2]
[372470334,1752657049423,-500.0,0.00023693,2]
[372470335,1752657049433,-500.0,0.00023693,2]
[372470336,1752657049443,-500.0,0.00023693,2]
[372470337,1752657049453,-500.0,0.00023693,2]
[372470338,1752657049463,-500.0,0.00023693,2]
[372470339,1752657049474,-500.0,0.00023693,2]
[372470340,1752657049485,-500.0,0.00023693,2]
[372470341,1752657049496,-500.0,0.00023693,2]
[372470342,1752657049507,-500.0,0.00023693,2]
[372470343,1752657049518,-500.0,0.00023693,2]
[372470344,1752657049528,-500.0,0.00023693,2]
[372470345,1752657049539,-500.0,0.00023693,2]
[372470346,1752657049549,-500.0,0.00023693,2]
[372470347,1752657049559,-500.0,0.00023693,2]
[372470348,1752657049573,-500.0,0.00023693,2]
[372470349,1752657049584,-714.0,0.000238,7]
[372470350,1752657049594,-567.97,0.00023835,2]
[372470351,1752657049606,-460.0,0.00023835,2]
[372470352,1752657049618,-1425.85,0.00023835,2]
[372470353,1752657049629,-460.0,0.00023835,2]
[372470354,1752657049640,-984.74,0.00023835,2]
[372470355,1752657049652,-1727.28,0.00023835,2]
[372470356,1752657049662,-460.0,0.00023835,2]
[372470357,1752657049672,-959.51,0.00023835,2]
[372470358,1752657049682,-521.71,0.00023835,2]
[372470359,1752657049692,-861.92,0.00023835,2]
[372470360,1752657049701,-542.33,0.00023835,2]
[372470361,1752657049712,-609.38,0.00023835,2]
[372470362,1752657049722,-825.03,0.00023835,2]
[372470363,1752657049732,-658.76,0.00023835,2]
[372470364,1752657049742,-500.0,0.00023866,2]
[372470365,1752657049751,-379.3,0.000239,7]
[372470366,1752657049761,-250.0,0.00023914,2]
[372470367,1752657049770,-10664.01,0.00024,7]
[372470368,1752657049780,-458.549,0.00024074,2]
[372470369,1752657049788,-460.0,0.00024109,2]
[372470370,1752657049798,-1425.85,0.00024109,2]
[372470371,1752657049807,-460.0,0.00024109,2]
[372470372,1752657049819,-984.74,0.00024109,2]
[372470373,1752657049829,-1727.28,0.00024109,2]
[372470374,1752657049840,-460.0,0.00024109,2]
[372470375,1752657049851,-959.51,0.00024109,2]
[372470376,1752657049864,-521.71,0.00024109,2]
[372470377,1752657049873,-861.92,0.00024109,2]
[372470378,1752657049882,-542.33,0.00024109,2]
[372470379,1752657049891,-609.38,0.00024109,2]
[372470380,1752657049900,-825.03,0.00024109,2]
[372470381,1752657049910,-658.76,0.00024109,2]
[372470382,1752657049919,-160.0,0.0002413,4]
[372470383,1752657049929,-162.0,0.00024164,7]
[372470384,1752657049938,-151.0,0.000242,5]
[372470385,1752657049948,-3246.5251092,0.00024282,2]
[372470386,1752657049957,-3000.0,0.000243,2]
[372470387,1752657049967,-3000.0,0.0002431,2]
[372470388,1752657049976,-3000.0,0.0002432,2]
[372470389,1752657049986,-3000.0,0.0002433,2]
[372470390,1752657049995,-3292.749114,0.0002434,2]
[372470391,1752657050005,-460.0,0.00024383,2]
[372470392,1752657050015,-1425.85,0.00024383,2]
[372470393,1752657050024,-460.0,0.00024383,2]
[372470394,1752657050034,-984.74,0.00024383,2]
[372470395,1752657050044,-1727.28,0.00024383,2]
[372470396,1752657050054,-460.0,0.00024383,2]
[372470397,1752657050066,-959.51,0.00024383,2]
[372470398,1752657050076,-521.71,0.00024383,2]
[372470399,1752657050086,-861.92,0.00024383,2]
[372470400,1752657050095,-542.33,0.00024383,2]
[372470401,1752657050105,-609.38,0.00024383,2]
[372470402,1752657050115,-825.03,0.00024383,2]
[372470403,1752657050124,-658.76,0.00024383,2]
[372470404,1752657050133,-17348.31,0.000244,2]
[372470405,1752657050143,-500.0,0.00024444,2]
[372470406,1752657050152,-1027.678642,0.000245,8]
[372470407,1752657050164,-168.0,0.0002454,2]
[372470408,1752657050174,-3246.5251092,0.00024552,2]
[372470409,1752657050183,-5000.0,0.00024604,3]
[372470410,1752657050193,-180.182,0.00024635,2]
[372470411,1752657050202,-175.957,0.00024645,2]
[372470412,1752657050212,-460.0,0.00024657,2]
[372470413,1752657050222,-1425.85,0.00024657,2]
[372470414,1752657050231,-460.0,0.00024657,2]
[372470415,1752657050241,-984.74,0.00024657,2]
[372470416,1752657050250,-1727.28,0.00024657,2]
[372470417,1752657050260,-460.0,0.00024657,2]
[372470418,1752657050274,-959.51,0.00024657,2]
[372470419,1752657050284,-521.71,0.00024657,2]
[372470420,1752657050294,-861.92,0.00024657,2]
[372470421,1752657050303,-542.33,0.00024657,2]
[372470422,1752657050316,-609.38,0.00024657,2]
[372470423,1752657050326,-825.03,0.00024657,2]
[372470424,1752657050335,-658.76,0.00024657,2]
[372470425,1752657050347,-350.27166094,0.00024657,2]
[372470426,1752657050356,-503.0,0.0002468,2]
[372470427,1752657050366,-151.0,0.00024712,7]
[372470428,1752657050375,-151.511243,0.0002475,14]
[372470429,1752657050385,-168.0,0.00024767,2]
[372470430,1752657050395,-170.4186172,0.000248,2]
[372470431,1752657050405,-10194.3297607,0.000248,2]
[372470432,1752657050414,-249.77793797,0.000248,2]
[372470433,1752657050423,-523.48958065,0.00024835,2]
[372470434,1752657050433,-168.0,0.00024837,2]
[372470435,1752657050442,-319.7326873,0.00024849,2]
[372470436,1752657050452,-784.17921236,0.0002486,2]
[372470437,1752657050461,-9809.70616333,0.0002487,2]
[372470438,1752657050471,-3246.5251092,0.00024876,2]
[372470439,1752657050480,-500.0,0.00024899,10]
[372470440,1752657050490,-500.0,0.00024899,10]
[372470441,1752657050500,-5920.6550084,0.000249,2]
[372470442,1752657050509,-151.0,0.000249,7]
[372470443,1752657050519,-151.0,0.000249,7]
[372470444,1752657050612,-500.0,0.000249,9]
[372470445,1752657050622,-198.844935,0.000249,7]
[372470446,1752657050631,-198.844935,0.000249,7]
[372470447,1752657050640,-771.05,0.000249,2]
[372470448,1752657050648,-500.0,0.000249,9]
[372470449,1752657050658,-103441.90964215,0.000249,2]
[372470450,1752657050780,-580.28285036,0.00022782,2]
[372470451,1752657050790,-3055.36086627,0.000249,2]
[372470452,1752657050802,-3227.93036684,0.000249,2]
[372470453,1752657050816,-6490.834237,0.000249,2]
[372470454,1752657050828,-59449.9336616,0.000249,2]
[372470455,1752657050918,-460.0,0.00019178,2]
[372470456,1752657050926,-460.0,0.00019452,2]
[372470457,1752657050933,-460.0,0.00019999,2]
[372470458,1752657050940,-460.0,0.00020273,2]
[372470459,1752657050948,-460.0,0.00020547,2]
[372470460,1752657050955,-460.0,0.00020821,2]
[372470461,1752657050963,-503.57,0.00021095,2]
[372470462,1752657050973,-960.62265248,0.000249,2]
[372470463,1752657050985,-920.0,0.000249,2]
[372470464,1752657050995,-6530.2994569,0.000249,2]
[372470465,1752657141397,-288.76861683,0.00019174,2]
[372470466,1752657143554,-11.23138317,0.00019174,2]
[372470467,1752657143585,-231.78905722,0.00019175,2]
[372470468,1752657145220,-268.21094278,0.00019175,2]
[372470469,1752657145242,-154.5151443,0.00019175,2]
[372470470,1752657147966,-324.08313687,0.00019175,2]
[372470471,1752657150493,-21.40171883,0.00019175,2]
[372470472,1752657150517,-174.78899035,0.00019175,2]
[372470473,1752657154855,-293.56829723,0.00019175,2]
[372470475,1752657401057,255.0,0.00018031,2]
[372470477,1752657472700,1979.8817606,0.00018037,2]
[372470478,1752657473961,-196.30046548,0.00018186,2]
[372470479,1752657473983,-62.85943046,0.0001831,2]
[372470480,1752657488613,-110.24253125,0.0001831,2]
[372470481,1752657500461,-178.52608558,0.0001843,2]
[372470482,1752657517555,-108.4830238,0.0001843,2]
[372470483,1752657556739,500.0,0.00027,120]
[372470487,1752657658114,500.0,0.00027,120]
[372470489,1752657752636,200.0,0.00025609,120]
[372470490,1752657787469,153.0,0.00024,120]
[372470491,1752657789230,153.0,0.000251,120]
[372470492,1752657790621,153.0,0.000262,120]
[372470493,1752657792005,153.0,0.000273,120]
[372470494,1752657837471,5152.9199767,0.00017981,2]
[372470495,1752657898050,307.2556602,0.00017968,2]
[372470497,1752658041087,-172.20546562,0.00018427,2]
[372470498,1752658041108,-594.53310825,0.00018896,2]
[372470499,1752658041133,-1172.80977629,0.000189,2]
[372470500,1752658041153,-160.0,0.000189,2]
[372470501,1752658041175,-829.94,0.00018984,3]
[372470502,1752658041199,-1106.54,0.00018986,3]
[372470503,1752658041222,-553.27,0.00018986,3]
[372470504,1752658041244,-276.63,0.00018986,3]
[372470505,1752658041266,-300.0,0.00018992,2]
[372470506,1752658041287,-500.0,0.00018993,2]
[372470507,1752658041310,-500.0,0.00018993,2]
[372470508,1752658041330,-331.50555536,0.00018993,2]
[372470509,1752658041351,-500.0,0.00018993,2]
[372470510,1752658041372,-500.0,0.00018993,2]
[372470511,1752658041393,-500.0,0.00018993,2]
[372470512,1752658041414,-500.0,0.00018993,2]
[372470513,1752658041438,-144.29385966,0.00018993,2]
[372470514,1752658050221,-287.55186476,0.000188,2]
[372470515,1752658050245,-1113.24473757,0.00018993,2]
[372470516,1752658050374,-500.0,0.00018993,2]
[372470517,1752658050397,-500.0,0.00018993,2]
[372470518,1752658050417,-500.0,0.00018993,2]
[372470519,1752658050440,-1257.53859723,0.00018993,2]
[372470520,1752658050465,-500.0,0.00018993,2]
[372470521,1752658050487,-500.0,0.00018993,2]
[372470522,1752658050508,-500.0,0.00018993,2]
[372470523,1752658050530,-500.0,0.00018993,2]
[372470524,1752658050552,-395.05366138,0.00018993,2]
[372470525,1752658050574,-500.0,0.00018993,2]
[372470526,1752658050595,-500.0,0.00018993,2]
[372470527,1752658050618,-500.0,0.00018993,2]
[372470528,1752658050641,-1257.53859723,0.00018993,2]
[372470529,1752658050660,-200.16722464,0.00018993,2]
[372470530,1752658050683,-434.87463638,0.00018993,2]
[372470532,1752658063540,323.200639,0.00013699,2]
[372470533,1752658072908,39155.48959971,0.00018,2]
[372470534,1752658107614,2082.58457145,0.000176,2]
[372470536,1752658117719,32454.72827552,0.00017,2]
[372470555,1752658230646,1969.9113218,0.00017995,2]
[372470562,1752658236875,-520.21646971,0.00018893,2]
[372470563,1752658236886,-292.16375305,0.00018992,2]
[372470564,1752658236896,-500.0,0.00018992,2]
[372470565,1752658236906,-500.0,0.00018992,2]
[372470566,1752658236916,-500.0,0.00018992,2]
[372470567,1752658236925,-500.0,0.00018992,2]
[372470568,1752658236934,-500.0,0.00018992,2]
[372470569,1752658236944,-500.0,0.00018992,2]
[372470570,1752658236954,-500.0,0.00018992,2]
[372470571,1752658236963,-500.0,0.00018992,2]
[372470572,1752658236973,-500.0,0.00018992,2]
[372470574,1752658236982,-84.64484271,0.00018992,2]
[372470576,1752658236993,-415.35515729,0.00018992,2]
[372470578,1752658237002,-500.0,0.00018992,2]
[372470580,1752658237010,-500.0,0.00018992,2]
[372470581,1752658237020,-71.99484271,0.00018992,2]
[372470582,1752658237036,-428.00515729,0.00018992,2]
[372470584,1752658237045,-500.0,0.00018992,2]
[372470586,1752658237055,-82.96326126,0.00018992,2]
[372470588,1752658237066,-417.03673874,0.00018992,2]
[372470591,1752658237075,-500.0,0.00018992,2]
[372470593,1752658237084,-500.0,0.00018992,2]
[372470595,1752658237094,-500.0,0.00018992,2]
[372470597,1752658237103,-500.0,0.00018992,2]
[372470599,1752658237113,-500.0,0.00018992,2]
[372470601,1752658237123,-500.0,0.00018992,2]
[372470603,1752658237132,-500.0,0.00018992,2]
[372470605,1752658237142,-500.0,0.00018992,2]
[372470607,1752658237151,-500.0,0.00018992,2]
[372470610,1752658237163,-500.0,0.00018992,2]
[372470612,1752658237172,-500.0,0.00018992,2]
[372470613,1752658237182,-500.0,0.00018992,2]
[372470614,1752658237191,-500.0,0.00018992,2]
[372470615,1752658237201,-500.0,0.00018992,2]
[372470616,1752658237210,-500.0,0.00018992,2]
[372470617,1752658237220,-500.0,0.00018992,2]
[372470618,1752658237230,-398.48209213,0.00018992,2]
[372470642,1752658238232,-101.51790787,0.00018992,2]
[372470644,1752658238242,-500.0,0.00018992,2]
[372470646,1752658238253,-500.0,0.00018992,2]
[372470649,1752658238265,-500.0,0.00018992,2]
[372470651,1752658238277,-500.0,0.00018992,2]
[372470652,1752658238287,-500.0,0.00018992,2]
[372470655,1752658238297,-252.29151039,0.00018992,2]
[372470656,1752658238306,-300.0,0.00018992,2]
[372470658,1752658238317,-300.0,0.00018992,2]
[372470660,1752658238327,-300.0,0.00018992,2]
[372470663,1752658238342,-1200.0,0.00018992,2]
[372470665,1752658238353,-300.0,0.00018992,2]
[372470667,1752658238363,-300.0,0.00018992,2]
[372470669,1752658238372,-3198.70049553,0.00018993,2]
[372470673,1752658238411,-4957.81781365,0.00018993,2]
[372470676,1752658238422,-562.7876311,0.00018993,2]
[372470678,1752658238433,-1425.16183529,0.00018993,2]
[372470680,1752658238444,-6137.1724603,0.00018993,2]
[372470682,1752658238455,-33718.35976413,0.00018993,2]
[372470685,1752658238476,-500.0,0.00018993,2]
[372470687,1752658238487,-1257.53859723,0.00018993,2]
[372470689,1752658238496,-500.0,0.00018993,2]
[372470691,1752658238506,-500.0,0.00018993,2]
[372470693,1752658238517,-500.0,0.00018993,2]
[372470696,1752658238527,-1257.53859723,0.00018993,2]
[372470698,1752658238538,-500.0,0.00018993,2]
[372470699,1752658238549,-500.0,0.00018993,2]
[372470700,1752658238560,-1257.53859723,0.00018993,2]
[372470701,1752658238571,-500.0,0.00018993,2]
[372470702,1752658238582,-500.0,0.00018993,2]
[372470703,1752658238592,-1257.53859723,0.00018993,2]
[372470704,1752658238602,-583.13430254,0.00018993,2]
[372470705,1752658238612,-488.01621881,0.00018993,2]
[372470706,1752658238622,-1257.53859723,0.00018993,2]
[372470707,1752658238633,-1257.53859723,0.00018993,2]
[372470708,1752658238643,-500.0,0.00018993,2]
[372470709,1752658238654,-1257.53859723,0.00018993,2]
[372470710,1752658238664,-1257.53859723,0.00018993,2]
[372470711,1752658238674,-1257.53859723,0.00018993,2]
[372470712,1752658238684,-500.0,0.00018993,2]
[372470713,1752658238694,-1257.53859723,0.00018993,2]
[372470714,1752658238704,-1257.53859723,0.00018993,2]
[372470715,1752658238715,-500.0,0.00018993,2]
[372470717,1752658238728,-500.0,0.00018993,2]
[372470719,1752658238738,-1257.53859723,0.00018993,2]
[372470721,1752658238749,-500.0,0.00018993,2]
[372470723,1752658238760,-1257.53859723,0.00018993,2]
[372470725,1752658238771,-500.0,0.00018993,2]
[372470727,1752658238781,-1257.53859723,0.00018993,2]
[372470729,1752658238791,-500.0,0.00018993,2]
[372470732,1752658238803,-1257.53859723,0.00018993,2]
[372470734,1752658238813,-500.0,0.00018993,2]
[372470736,1752658238823,-1257.53859723,0.00018993,2]
[372470738,1752658238833,-500.0,0.00018993,2]
[372470739,1752658238842,-1257.53859723,0.00018993,2]
[372470741,1752658238852,-500.0,0.00018993,2]
[372470743,1752658238862,-1257.53859723,0.00018993,2]
[372470745,1752658238873,-500.0,0.00018993,2]
[372470747,1752658238882,-1257.53859723,0.00018993,2]
[372470749,1752658238892,-500.0,0.00018993,2]
[372470751,1752658238902,-1257.53859723,0.00018993,2]
[372470753,1752658238912,-500.0,0.00018993,2]
[372470756,1752658238922,-1257.53859723,0.00018993,2]
[372470758,1752658238931,-500.0,0.00018993,2]
[372470759,1752658238941,-1257.53859723,0.00018993,2]
[372470761,1752658238951,-1257.53859723,0.00018993,2]
[372470763,1752658238962,-500.0,0.00018993,2]
[372470765,1752658238973,-1257.53859723,0.00018993,2]
[372470767,1752658238982,-500.0,0.00018993,2]
[372470769,1752658238992,-1257.53859723,0.00018993,2]
[372470771,1752658239002,-500.0,0.00018993,2]
[372470773,1752658239011,-1257.53859723,0.00018993,2]
[372470775,1752658239021,-500.0,0.00018993,2]
[372470777,1752658239031,-1257.53859723,0.00018993,2]
[372470779,1752658239041,-500.0,0.00018993,2]
[372470781,1752658239050,-1257.53859723,0.00018993,2]
[372470783,1752658239060,-500.0,0.00018993,2]
[372470785,1752658239070,-1257.53859723,0.00018993,2]
[372470787,1752658239080,-500.0,0.00018993,2]
[372470789,1752658239089,-1257.53859723,0.00018993,2]
[372470791,1752658239100,-500.0,0.00018993,2]
[372470793,1752658239110,-1257.53859723,0.00018993,2]
[372470795,1752658239120,-579.40454934,0.00018993,2]
[372470797,1752658239130,-500.0,0.00018993,2]
[372470799,1752658239139,-1257.53859723,0.00018993,2]
[372470801,1752658239150,-500.0,0.00018993,2]
[372470803,1752658239160,-1257.53859723,0.00018993,2]
[372470806,1752658239170,-500.0,0.00018993,2]
[372470808,1752658239180,-1257.53859723,0.00018993,2]
[372470810,1752658239190,-1257.53859723,0.00018993,2]
[372470812,1752658239200,-500.0,0.00018993,2]
[372470814,1752658239209,-1257.53859723,0.00018993,2]
[372470816,1752658239219,-1257.53859723,0.00018993,2]